[Event "Titled Tuesday Blitz July 4 Early 2023"]
[White "Domingo Nunez, Ruben"]
[Black "Ladan, Nicholas"]
[WhiteFideId "22245570"]
[BlackFideId "30918855"]
[WhiteElo "2605"]
[BlackElo "2448"]
[Result "1-0"]
[Round "6"]
[TimeControl "180+2"]
[Date "2023.07.04"]
[WhiteClock "0:00:07"]
[BlackClock "0:00:01"]
[Board "82"]

1. Nf3 {[%clk 0:03:00]}  d5 {[%clk 0:02:59]} 2. g3 {[%clk 0:03:00]}  Bg4 {[%clk 0:02:57]} 3. Bg2 {[%clk 0:03:00]}  e6 {[%clk 0:02:56]} 4. d3 {[%clk 0:03:00]}  Nd7 {[%clk 0:02:55]} 5. O-O {[%clk 0:03:00]}  Bd6 {[%clk 0:02:56]} 6. e4 {[%clk 0:02:57]}  Ne7 {[%clk 0:02:55]} 7. Re1 {[%clk 0:02:49]}  c6 {[%clk 0:02:54]} 8. c4 {[%clk 0:02:44]}  O-O {[%clk 0:02:52]} 9. Nc3 {[%clk 0:02:42]}  dxc4 {[%clk 0:02:42]} 10. dxc4 {[%clk 0:02:39]}  Ne5 {[%clk 0:02:42]} 11. Qe2 {[%clk 0:02:29]}  Bxf3 {[%clk 0:02:31]} 12. Bxf3 {[%clk 0:02:28]}  Nxf3+ {[%clk 0:02:32]} 13. Qxf3 {[%clk 0:02:29]}  Be5 {[%clk 0:02:33]} 14. Bf4 {[%clk 0:02:21]}  Bxc3 {[%clk 0:02:30]} 15. Qxc3 {[%clk 0:02:21]}  Ng6 {[%clk 0:02:27]} 16. Be3 {[%clk 0:02:21]}  e5 {[%clk 0:02:23]} 17. Red1 {[%clk 0:02:06]}  Qe7 {[%clk 0:02:23]} 18. b4 {[%clk 0:02:02]}  a6 {[%clk 0:02:20]} 19. Bc5 {[%clk 0:02:02]}  Qe6 {[%clk 0:02:16]} 20. Bxf8 {[%clk 0:02:02]}  Nxf8 {[%clk 0:02:12]} 21. c5 {[%clk 0:02:00]}  Re8 {[%clk 0:02:11]} 22. Rd6 {[%clk 0:01:58]}  Qg4 {[%clk 0:02:10]} 23. f3 {[%clk 0:01:52]}  Qh5 {[%clk 0:02:07]} 24. Rad1 {[%clk 0:01:51]}  Ne6 {[%clk 0:02:05]} 25. Kg2 {[%clk 0:01:44]}  Nd4 {[%clk 0:01:51]} 26. R1xd4 {[%clk 0:01:39]}  exd4 {[%clk 0:01:51]} 27. Qxd4 {[%clk 0:01:40]}  g5 {[%clk 0:01:36]} 28. Qf6 {[%clk 0:01:08]}  g4 {[%clk 0:01:06]} 29. f4 {[%clk 0:01:08]}  Qg6 {[%clk 0:01:05]} 30. Qxg6+ {[%clk 0:00:57]}  hxg6 {[%clk 0:01:06]} 31. e5 {[%clk 0:00:57]}  Re7 {[%clk 0:01:06]} 32. a4 {[%clk 0:00:50]}  Kg7 {[%clk 0:00:58]} 33. h3 {[%clk 0:00:48]}  gxh3+ {[%clk 0:00:55]} 34. Kxh3 {[%clk 0:00:49]}  Rc7 {[%clk 0:00:41]} 35. Kg4 {[%clk 0:00:33]}  Kf8 {[%clk 0:00:41]} 36. e6 {[%clk 0:00:25]}  f6 {[%clk 0:00:34]} 37. f5 {[%clk 0:00:25]}  g5 {[%clk 0:00:27]} 38. Kh5 {[%clk 0:00:20]}  Rg7 {[%clk 0:00:04]} 39. Rd8+ {[%clk 0:00:10]}  Ke7 {[%clk 0:00:03]} 40. Rd7+ {[%clk 0:00:10]}  Kf8 {[%clk 0:00:03]} 41. Kh6 {[%clk 0:00:10]}  Rxd7 {[%clk 0:00:03]} 42. exd7 {[%clk 0:00:10]}  Ke7 {[%clk 0:00:04]} 43. Kg7 {[%clk 0:00:10]}  b6 {[%clk 0:00:02]} 44. cxb6 {[%clk 0:00:08]}  a5 {[%clk 0:00:02]} 45. b7 {[%clk 0:00:07]}  axb4 {[%clk 0:00:01]} 46. b8=Q {[%clk 0:00:07]}  b3 {[%clk 0:00:01]} 47. d8=Q# {[%clk 0:00:07]} 1-0


[Site "https://www.chess.com"]

[Event "Titled Tuesday Blitz July 4 Early 2023"]
[White "FuenfgegenWilly"]
[Black "Ovchinnikov, Vsevolod"]
[BlackFideId "24176842"]
[WhiteElo "2408"]
[BlackElo "2594"]
[Result "0-1"]
[Round "6"]
[TimeControl "180+2"]
[Date "2023.07.04"]
[WhiteClock "0:00:00"]
[BlackClock "0:00:06"]
[Board "86"]

1. d4 {[%clk 0:03:00]}  Nf6 {[%clk 0:02:59]} 2. c4 {[%clk 0:03:00]}  c6 {[%clk 0:02:59]} 3. Nc3 {[%clk 0:03:00]}  d5 {[%clk 0:03:00]} 4. cxd5 {[%clk 0:03:01]}  cxd5 {[%clk 0:03:00]} 5. Bf4 {[%clk 0:03:02]}  a6 {[%clk 0:02:56]} 6. e3 {[%clk 0:03:02]}  Nc6 {[%clk 0:02:57]} 7. Rc1 {[%clk 0:03:02]}  e6 {[%clk 0:02:57]} 8. Bd3 {[%clk 0:03:00]}  Bd6 {[%clk 0:02:58]} 9. Bxd6 {[%clk 0:03:01]}  Qxd6 {[%clk 0:02:59]} 10. f4 {[%clk 0:03:01]}  O-O {[%clk 0:02:58]} 11. Nf3 {[%clk 0:03:01]}  Bd7 {[%clk 0:02:54]} 12. O-O {[%clk 0:03:01]}  Rac8 {[%clk 0:02:54]} 13. Ne5 {[%clk 0:03:02]}  Rc7 {[%clk 0:02:53]} 14. Qf3 {[%clk 0:03:02]}  Rfc8 {[%clk 0:02:48]} 15. g4 {[%clk 0:03:02]}  Be8 {[%clk 0:02:45]} 16. g5 {[%clk 0:03:02]}  Nd7 {[%clk 0:02:46]} 17. Qh5 {[%clk 0:02:58]}  Nf8 {[%clk 0:02:45]} 18. Rf3 {[%clk 0:02:54]}  f5 {[%clk 0:02:06]} 19. Qh4 {[%clk 0:02:49]}  Nxe5 {[%clk 0:02:01]} 20. fxe5 {[%clk 0:02:47]}  Qb4 {[%clk 0:01:58]} 21. Rc2 {[%clk 0:02:44]}  b5 {[%clk 0:01:35]} 22. Qe1 {[%clk 0:02:20]}  Qe7 {[%clk 0:01:35]} 23. Rg2 {[%clk 0:02:08]}  b4 {[%clk 0:01:23]} 24. Ne2 {[%clk 0:02:08]}  a5 {[%clk 0:00:59]} 25. h3 {[%clk 0:02:07]}  Bh5 {[%clk 0:00:57]} 26. Rf4 {[%clk 0:02:04]}  Ng6 {[%clk 0:00:48]} 27. Rf1 {[%clk 0:02:03]}  Bxe2 {[%clk 0:00:37]} 28. Qxe2 {[%clk 0:02:04]}  Rc1 {[%clk 0:00:36]} 29. Kh2 {[%clk 0:02:01]}  Qc7 {[%clk 0:00:24]} 30. Rxc1 {[%clk 0:01:58]}  Qxc1 {[%clk 0:00:25]} 31. Rg1 {[%clk 0:01:52]}  Qc7 {[%clk 0:00:20]} 32. Qf2 {[%clk 0:01:50]}  Nf8 {[%clk 0:00:10]} 33. Rg2 {[%clk 0:01:43]}  Qc1 {[%clk 0:00:10]} 34. Rg1 {[%clk 0:01:40]}  Qc6 {[%clk 0:00:10]} 35. h4 {[%clk 0:01:35]}  Qa4 {[%clk 0:00:10]} 36. Bb1 {[%clk 0:01:31]}  Rc7 {[%clk 0:00:10]} 37. Qd2 {[%clk 0:01:27]}  Qc6 {[%clk 0:00:09]} 38. Bd3 {[%clk 0:01:21]}  Qa4 {[%clk 0:00:08]} 39. Bb1 {[%clk 0:01:21]}  Qc6 {[%clk 0:00:08]} 40. Kg3 {[%clk 0:01:19]}  Ng6 {[%clk 0:00:08]} 41. h5 {[%clk 0:01:17]}  Nf8 {[%clk 0:00:09]} 42. Kf4 {[%clk 0:01:17]}  Nd7 {[%clk 0:00:08]} 43. Rf1 {[%clk 0:00:57]}  Nb6 {[%clk 0:00:09]} 44. b3 {[%clk 0:00:56]}  Qc3 {[%clk 0:00:08]} 45. Qg2 {[%clk 0:00:42]}  a4 {[%clk 0:00:04]} 46. bxa4 {[%clk 0:00:37]}  Nxa4 {[%clk 0:00:04]} 47. g6 {[%clk 0:00:34]}  h6 {[%clk 0:00:03]} 48. Bxf5 {[%clk 0:00:32]}  Qc6 {[%clk 0:00:03]} 49. Bg4 {[%clk 0:00:18]}  Nc3 {[%clk 0:00:04]} 50. Qh3 {[%clk 0:00:17]}  Re7 {[%clk 0:00:04]} 51. Kg3 {[%clk 0:00:16]}  Qe8 {[%clk 0:00:05]} 52. Rf2 {[%clk 0:00:14]}  Ne4+ {[%clk 0:00:05]} 53. Kg2 {[%clk 0:00:13]}  Nxf2 {[%clk 0:00:06]} 54. Kxf2 {[%clk 0:00:14]}  Qf8+ {[%clk 0:00:06]} 55. Ke2 {[%clk 0:00:14]}  Qc8 {[%clk 0:00:07]} 56. Kf3 {[%clk 0:00:13]}  Qc6 {[%clk 0:00:06]} 57. Kg3 {[%clk 0:00:14]}  Re8 {[%clk 0:00:07]} 58. Kh4 {[%clk 0:00:14]}  Kh8 {[%clk 0:00:07]} 59. Qf3 {[%clk 0:00:14]}  Qd7 {[%clk 0:00:07]} 60. Qd1 {[%clk 0:00:13]}  Qe7+ {[%clk 0:00:08]} 61. Kg3 {[%clk 0:00:12]}  Rf8 {[%clk 0:00:08]} 62. Qe2 {[%clk 0:00:09]}  Qg5 {[%clk 0:00:09]} 63. Qd2 {[%clk 0:00:06]}  Qe7 {[%clk 0:00:08]} 64. Qe2 {[%clk 0:00:06]}  Ra8 {[%clk 0:00:07]} 65. Qc2 {[%clk 0:00:03]}  Qd7 {[%clk 0:00:07]} 66. Qb3 {[%clk 0:00:03]}  Qe7 {[%clk 0:00:07]} 67. Kh3 {[%clk 0:00:02]}  Ra3 {[%clk 0:00:06]} 68. Qb2 {[%clk 0:00:01]}  Rxe3+ {[%clk 0:00:06]} 69. Kg2 {[%clk 0:00:02]}  Ra3 {[%clk 0:00:06]} 70. Bf3 {[%clk 0:00:01]}  Ra8 {[%clk 0:00:06]} 71. Qf2 {[%clk 0:00:01]}  Qg5+ {[%clk 0:00:06]} 72. Kh3 {[%clk 0:00:01]}  Qf5+ {[%clk 0:00:06]} 73. Kh4 {[%clk 0:00:01]}  Qf4+ {[%clk 0:00:06]} 74. Kh3 {[%clk 0:00:01]}  Ra3 {[%clk 0:00:06]} 75. Kg2 {[%clk 0:00:00]}  Kg8 {[%clk 0:00:06]} 0-1


[Site "https://www.chess.com"]

[Event "Titled Tuesday Blitz July 4 Early 2023"]
[White "Labussiere, Yago"]
[Black "Tanaka, Taira Tyler"]
[WhiteFideId "2186969"]
[BlackFideId "7002351"]
[WhiteElo "2385"]
[BlackElo "2591"]
[Result "0-1"]
[Round "6"]
[TimeControl "180+2"]
[Date "2023.07.04"]
[WhiteClock "0:00:08"]
[BlackClock "0:00:18"]
[Board "87"]

1. d4 {[%clk 0:03:00]}  Nf6 {[%clk 0:02:57]} 2. c4 {[%clk 0:02:58]}  e6 {[%clk 0:02:58]} 3. Nf3 {[%clk 0:02:58]}  d5 {[%clk 0:02:59]} 4. cxd5 {[%clk 0:02:58]}  exd5 {[%clk 0:03:00]} 5. Nc3 {[%clk 0:02:59]}  c6 {[%clk 0:03:00]} 6. Bg5 {[%clk 0:02:58]}  Be7 {[%clk 0:03:00]} 7. Qc2 {[%clk 0:02:58]}  O-O {[%clk 0:02:59]} 8. e3 {[%clk 0:02:57]}  Re8 {[%clk 0:02:59]} 9. Bd3 {[%clk 0:02:56]}  Ne4 {[%clk 0:02:57]} 10. Bxe7 {[%clk 0:02:27]}  Qxe7 {[%clk 0:02:58]} 11. O-O {[%clk 0:02:26]}  Bf5 {[%clk 0:02:42]} 12. Rae1 {[%clk 0:02:19]}  Nd7 {[%clk 0:02:41]} 13. Nd2 {[%clk 0:02:18]}  Nxd2 {[%clk 0:02:40]} 14. Qxd2 {[%clk 0:02:18]}  Bxd3 {[%clk 0:02:40]} 15. Qxd3 {[%clk 0:02:18]}  a5 {[%clk 0:02:38]} 16. f3 {[%clk 0:02:11]}  b5 {[%clk 0:02:15]} 17. e4 {[%clk 0:02:07]}  b4 {[%clk 0:02:15]} 18. Na4 {[%clk 0:02:04]}  dxe4 {[%clk 0:01:44]} 19. fxe4 {[%clk 0:02:04]}  Rad8 {[%clk 0:01:44]} 20. Qc4 {[%clk 0:02:04]}  Nf6 {[%clk 0:01:38]} 21. Nc5 {[%clk 0:02:00]}  Nd7 {[%clk 0:01:27]} 22. Nb7 {[%clk 0:01:56]}  Rc8 {[%clk 0:01:28]} 23. Nxa5 {[%clk 0:01:52]}  c5 {[%clk 0:01:28]} 24. Nb7 {[%clk 0:01:15]}  Ne5 {[%clk 0:01:06]} 25. dxe5 {[%clk 0:01:07]}  Qxb7 {[%clk 0:01:07]} 26. Rf5 {[%clk 0:00:55]}  Re6 {[%clk 0:00:57]} 27. Ref1 {[%clk 0:00:55]}  Rce8 {[%clk 0:00:57]} 28. Qd5 {[%clk 0:00:47]}  Qxd5 {[%clk 0:00:50]} 29. exd5 {[%clk 0:00:47]}  Rxe5 {[%clk 0:00:51]} 30. Rxf7 {[%clk 0:00:48]}  Rxd5 {[%clk 0:00:50]} 31. Rc7 {[%clk 0:00:47]}  Rd2 {[%clk 0:00:45]} 32. Rff7 {[%clk 0:00:46]}  Re1+ {[%clk 0:00:45]} 33. Rf1 {[%clk 0:00:46]}  Rxf1+ {[%clk 0:00:45]} 34. Kxf1 {[%clk 0:00:47]}  Rxb2 {[%clk 0:00:42]} 35. Rxc5 {[%clk 0:00:45]}  Rxa2 {[%clk 0:00:42]} 36. Rb5 {[%clk 0:00:45]}  Rb2 {[%clk 0:00:42]} 37. Rb7 {[%clk 0:00:45]}  g6 {[%clk 0:00:41]} 38. h3 {[%clk 0:00:43]}  h5 {[%clk 0:00:40]} 39. h4 {[%clk 0:00:42]}  b3 {[%clk 0:00:38]} 40. Kg1 {[%clk 0:00:42]}  Rb1+ {[%clk 0:00:37]} 41. Kh2 {[%clk 0:00:42]}  Kf8 {[%clk 0:00:38]} 42. Kg3 {[%clk 0:00:39]}  Ke8 {[%clk 0:00:26]} 43. Kh2 {[%clk 0:00:34]}  Kd8 {[%clk 0:00:26]} 44. Rb6 {[%clk 0:00:34]}  Kc7 {[%clk 0:00:23]} 45. Rb4 {[%clk 0:00:20]}  Kc6 {[%clk 0:00:23]} 46. Rb8 {[%clk 0:00:18]}  Kd5 {[%clk 0:00:23]} 47. Rg8 {[%clk 0:00:16]}  Kc5 {[%clk 0:00:19]} 48. Rxg6 {[%clk 0:00:16]}  b2 {[%clk 0:00:18]} 49. Rg5+ {[%clk 0:00:16]}  Kc4 {[%clk 0:00:18]} 50. Rg8 {[%clk 0:00:11]}  Rc1 {[%clk 0:00:17]} 51. Rc8+ {[%clk 0:00:09]}  Kd5 {[%clk 0:00:18]} 52. Rd8+ {[%clk 0:00:08]}  Ke6 {[%clk 0:00:18]} 0-1


[Site "https://www.chess.com"]

[Event "Titled Tuesday Blitz July 4 Early 2023"]
[White "Chyngyz, Sultai"]
[Black "Gontcharov, Vladislav"]
[WhiteFideId "13803158"]
[BlackFideId "4123492"]
[WhiteElo "2362"]
[BlackElo "2584"]
[Result "1-0"]
[Round "6"]
[TimeControl "180+2"]
[Date "2023.07.04"]
[WhiteClock "0:00:48"]
[BlackClock "0:00:15"]
[Board "88"]

1. e4 {[%clk 0:02:57]}  e6 {[%clk 0:02:58]} 2. d4 {[%clk 0:02:57]}  d5 {[%clk 0:02:58]} 3. e5 {[%clk 0:02:57]}  c5 {[%clk 0:02:58]} 4. c3 {[%clk 0:02:58]}  Nc6 {[%clk 0:02:58]} 5. Nf3 {[%clk 0:02:59]}  Nge7 {[%clk 0:02:57]} 6. Na3 {[%clk 0:02:58]}  cxd4 {[%clk 0:02:57]} 7. cxd4 {[%clk 0:02:59]}  Nf5 {[%clk 0:02:58]} 8. Nc2 {[%clk 0:03:00]}  Nh4 {[%clk 0:02:58]} 9. Be2 {[%clk 0:02:59]}  Nxg2+ {[%clk 0:02:57]} 10. Kf1 {[%clk 0:02:59]}  Nh4 {[%clk 0:02:57]} 11. a3 {[%clk 0:02:50]}  Nxf3 {[%clk 0:02:53]} 12. Bxf3 {[%clk 0:02:51]}  g6 {[%clk 0:02:51]} 13. h4 {[%clk 0:02:49]}  h5 {[%clk 0:02:51]} 14. b4 {[%clk 0:02:47]}  Be7 {[%clk 0:02:48]} 15. Ne3 {[%clk 0:02:45]}  Bxh4 {[%clk 0:02:45]} 16. Bb2 {[%clk 0:02:33]}  Be7 {[%clk 0:02:33]} 17. Kg2 {[%clk 0:02:28]}  Bd7 {[%clk 0:02:25]} 18. Rc1 {[%clk 0:02:26]}  Rc8 {[%clk 0:02:23]} 19. Qd3 {[%clk 0:02:25]}  a6 {[%clk 0:02:16]} 20. Rhg1 {[%clk 0:02:17]}  Na7 {[%clk 0:02:15]} 21. Kh1 {[%clk 0:02:16]}  Rxc1 {[%clk 0:02:12]} 22. Bxc1 {[%clk 0:02:15]}  Bb5 {[%clk 0:02:08]} 23. Qb1 {[%clk 0:02:13]}  g5 {[%clk 0:01:52]} 24. Bd1 {[%clk 0:02:08]}  g4 {[%clk 0:01:49]} 25. Ng2 {[%clk 0:02:08]}  Bg5 {[%clk 0:01:45]} 26. f4 {[%clk 0:01:59]}  gxf3 {[%clk 0:01:28]} 27. Bxf3 {[%clk 0:01:56]}  Bxc1 {[%clk 0:01:27]} 28. Qxc1 {[%clk 0:01:57]}  Nc6 {[%clk 0:01:26]} 29. Qf4 {[%clk 0:01:48]}  Qb6 {[%clk 0:01:10]} 30. Rd1 {[%clk 0:01:43]}  Ba4 {[%clk 0:01:09]} 31. Rd2 {[%clk 0:01:43]}  a5 {[%clk 0:01:08]} 32. Ne3 {[%clk 0:01:35]}  axb4 {[%clk 0:01:03]} 33. Qf6 {[%clk 0:01:30]}  Rf8 {[%clk 0:00:59]} 34. Bxd5 {[%clk 0:01:23]}  exd5 {[%clk 0:00:52]} 35. e6 {[%clk 0:01:06]}  Ne7 {[%clk 0:00:43]} 36. exf7+ {[%clk 0:01:04]}  Kd7 {[%clk 0:00:40]} 37. Qxb6 {[%clk 0:01:05]}  Bc6 {[%clk 0:00:38]} 38. Qxb4 {[%clk 0:01:03]}  Rxf7 {[%clk 0:00:37]} 39. Re2 {[%clk 0:01:03]}  Rf4 {[%clk 0:00:35]} 40. Ng2 {[%clk 0:01:00]}  Rf7 {[%clk 0:00:33]} 41. Kh2 {[%clk 0:00:57]}  Ng6 {[%clk 0:00:28]} 42. Qe1 {[%clk 0:00:57]}  h4 {[%clk 0:00:27]} 43. Re8 {[%clk 0:00:53]}  Kc7 {[%clk 0:00:25]} 44. Re6 {[%clk 0:00:52]}  Rg7 {[%clk 0:00:20]} 45. Qa5+ {[%clk 0:00:51]}  Kd7 {[%clk 0:00:20]} 46. Rf6 {[%clk 0:00:49]}  Ne7 {[%clk 0:00:19]} 47. Qb4 {[%clk 0:00:48]}  Nc8 {[%clk 0:00:19]} 48. Qf8 {[%clk 0:00:47]}  Re7 {[%clk 0:00:17]} 49. Rf7 {[%clk 0:00:47]}  h3 {[%clk 0:00:15]} 50. Kxh3 {[%clk 0:00:47]}  Rxf7 {[%clk 0:00:15]} 51. Qxf7+ {[%clk 0:00:47]}  Kd8 {[%clk 0:00:15]} 52. Nf4 {[%clk 0:00:47]}  Nd6 {[%clk 0:00:15]} 53. Ne6+ {[%clk 0:00:47]}  Kc8 {[%clk 0:00:15]} 54. Qc7# {[%clk 0:00:48]} 1-0


[Site "https://www.chess.com"]

[Event "Titled Tuesday Blitz July 4 Early 2023"]
[White "Rodriguez Santiago, Jaime"]
[Black "Mamedov, Edgar"]
[WhiteFideId "3100898"]
[BlackFideId "13739980"]
[WhiteElo "2331"]
[BlackElo "2561"]
[Result "0-1"]
[Round "6"]
[TimeControl "180+2"]
[Date "2023.07.04"]
[WhiteClock "0:00:00"]
[BlackClock "0:00:06"]
[Board "92"]

1. c4 {[%clk 0:03:00]}  c6 {[%clk 0:02:59]} 2. d4 {[%clk 0:02:59]}  d5 {[%clk 0:02:59]} 3. cxd5 {[%clk 0:03:00]}  cxd5 {[%clk 0:02:58]} 4. Bf4 {[%clk 0:03:01]}  Nc6 {[%clk 0:02:57]} 5. e3 {[%clk 0:03:00]}  Nf6 {[%clk 0:02:57]} 6. Nc3 {[%clk 0:03:01]}  a6 {[%clk 0:02:56]} 7. Be2 {[%clk 0:02:57]}  Bf5 {[%clk 0:02:51]} 8. g4 {[%clk 0:02:55]}  Bg6 {[%clk 0:02:49]} 9. h4 {[%clk 0:02:54]}  h5 {[%clk 0:02:48]} 10. g5 {[%clk 0:02:54]}  Ne4 {[%clk 0:02:48]} 11. Rc1 {[%clk 0:02:43]}  e6 {[%clk 0:02:46]} 12. Bf3 {[%clk 0:02:36]}  Bb4 {[%clk 0:02:36]} 13. Ne2 {[%clk 0:02:34]}  O-O {[%clk 0:02:30]} 14. Kf1 {[%clk 0:02:29]}  Ne7 {[%clk 0:01:56]} 15. Ng3 {[%clk 0:02:06]}  Nxg3+ {[%clk 0:01:52]} 16. Bxg3 {[%clk 0:02:06]}  Bxc3 {[%clk 0:01:43]} 17. Rxc3 {[%clk 0:01:53]}  Nf5 {[%clk 0:01:18]} 18. Bf4 {[%clk 0:01:51]}  Qb6 {[%clk 0:01:09]} 19. Rb3 {[%clk 0:01:47]}  Qc6 {[%clk 0:01:06]} 20. Bxh5 {[%clk 0:01:44]}  Bxh5 {[%clk 0:00:57]} 21. Qxh5 {[%clk 0:01:43]}  Qc2 {[%clk 0:00:42]} 22. Kg2 {[%clk 0:01:18]}  Qe4+ {[%clk 0:00:40]} 23. Qf3 {[%clk 0:01:16]}  b5 {[%clk 0:00:32]} 24. Qxe4 {[%clk 0:01:09]}  dxe4 {[%clk 0:00:33]} 25. h5 {[%clk 0:01:09]}  Rac8 {[%clk 0:00:32]} 26. Ra3 {[%clk 0:00:57]}  Rc6 {[%clk 0:00:31]} 27. h6 {[%clk 0:00:52]}  gxh6 {[%clk 0:00:30]} 28. gxh6 {[%clk 0:00:52]}  Kh7 {[%clk 0:00:30]} 29. Kh2 {[%clk 0:00:45]}  Rc2 {[%clk 0:00:28]} 30. Rg1 {[%clk 0:00:35]}  Rxf2+ {[%clk 0:00:27]} 31. Kh1 {[%clk 0:00:35]}  Rxb2 {[%clk 0:00:25]} 32. Rxa6 {[%clk 0:00:35]}  Rc2 {[%clk 0:00:20]} 33. Ra7 {[%clk 0:00:32]}  Rcc8 {[%clk 0:00:19]} 34. Rb7 {[%clk 0:00:22]}  Ra8 {[%clk 0:00:18]} 35. Rg2 {[%clk 0:00:17]}  Ra5 {[%clk 0:00:18]} 36. Bc7 {[%clk 0:00:14]}  Ra3 {[%clk 0:00:15]} 37. Bf4 {[%clk 0:00:12]}  Ra5 {[%clk 0:00:13]} 38. Bc7 {[%clk 0:00:10]}  Ra3 {[%clk 0:00:13]} 39. Bf4 {[%clk 0:00:10]}  Nxe3 {[%clk 0:00:10]} 40. Rg7+ {[%clk 0:00:10]}  Kh8 {[%clk 0:00:10]} 41. Rbxf7 {[%clk 0:00:09]}  Rxf7 {[%clk 0:00:09]} 42. Rxf7 {[%clk 0:00:09]}  Ng4 {[%clk 0:00:07]} 43. Be5+ {[%clk 0:00:08]}  Nxe5 {[%clk 0:00:06]} 44. dxe5 {[%clk 0:00:09]}  Rxa2 {[%clk 0:00:06]} 45. Re7 {[%clk 0:00:07]}  e3 {[%clk 0:00:06]} 46. Kg1 {[%clk 0:00:03]}  Ra1+ {[%clk 0:00:06]} 47. Kg2 {[%clk 0:00:00]}  e2 {[%clk 0:00:06]} 0-1


[Site "https://www.chess.com"]

[Event "Titled Tuesday Blitz July 4 Early 2023"]
[White "Fantastic_Power"]
[Black "Slovineanu, Viacheslav"]
[BlackFideId "13900510"]
[WhiteElo "2561"]
[BlackElo "2320"]
[Result "0-1"]
[Round "6"]
[TimeControl "180+2"]
[Date "2023.07.04"]
[WhiteClock "0:00:00"]
[BlackClock "0:00:28"]
[Board "93"]

1. d4 {[%clk 0:02:59]}  Nf6 {[%clk 0:02:59]} 2. c4 {[%clk 0:02:54]}  e6 {[%clk 0:02:59]} 3. Nc3 {[%clk 0:02:54]}  d5 {[%clk 0:02:59]} 4. cxd5 {[%clk 0:02:50]}  Nxd5 {[%clk 0:02:58]} 5. e4 {[%clk 0:02:48]}  Nxc3 {[%clk 0:02:58]} 6. bxc3 {[%clk 0:02:49]}  c5 {[%clk 0:02:59]} 7. Nf3 {[%clk 0:02:50]}  cxd4 {[%clk 0:02:59]} 8. cxd4 {[%clk 0:02:51]}  Bb4+ {[%clk 0:02:59]} 9. Bd2 {[%clk 0:02:52]}  Bxd2+ {[%clk 0:03:00]} 10. Qxd2 {[%clk 0:02:53]}  O-O {[%clk 0:03:00]} 11. Bc4 {[%clk 0:02:53]}  Nd7 {[%clk 0:03:00]} 12. O-O {[%clk 0:02:53]}  b6 {[%clk 0:03:00]} 13. Rfe1 {[%clk 0:02:48]}  Bb7 {[%clk 0:02:59]} 14. Rad1 {[%clk 0:02:48]}  Rc8 {[%clk 0:02:59]} 15. Bb3 {[%clk 0:02:48]}  Re8 {[%clk 0:02:59]} 16. Re3 {[%clk 0:02:44]}  Nf6 {[%clk 0:02:32]} 17. d5 {[%clk 0:02:35]}  exd5 {[%clk 0:02:27]} 18. e5 {[%clk 0:02:36]}  Ne4 {[%clk 0:02:27]} 19. Qe1 {[%clk 0:02:37]}  Nc5 {[%clk 0:02:25]} 20. Bc2 {[%clk 0:02:32]}  d4 {[%clk 0:02:10]} 21. Rxd4 {[%clk 0:02:06]}  Qe7 {[%clk 0:02:09]} 22. h4 {[%clk 0:01:14]}  Ne6 {[%clk 0:02:03]} 23. Rd2 {[%clk 0:01:14]}  Bxf3 {[%clk 0:01:42]} 24. Rxf3 {[%clk 0:01:13]}  Rxc2 {[%clk 0:01:43]} 25. Rxc2 {[%clk 0:01:08]}  Nd4 {[%clk 0:01:43]} 26. Rfc3 {[%clk 0:00:45]}  Nxc2 {[%clk 0:01:43]} 27. Rxc2 {[%clk 0:00:46]}  Qxh4 {[%clk 0:01:41]} 28. Rc7 {[%clk 0:00:45]}  g6 {[%clk 0:01:35]} 29. Rxa7 {[%clk 0:00:40]}  Qd4 {[%clk 0:01:33]} 30. g3 {[%clk 0:00:11]}  Rxe5 {[%clk 0:01:30]} 31. Qb1 {[%clk 0:00:12]}  Re2 {[%clk 0:01:18]} 32. Qf1 {[%clk 0:00:11]}  Qe4 {[%clk 0:01:16]} 33. Kh2 {[%clk 0:00:10]}  Qf3 {[%clk 0:00:58]} 34. Kg1 {[%clk 0:00:07]}  Rd2 {[%clk 0:00:56]} 35. Re7 {[%clk 0:00:03]}  Rxa2 {[%clk 0:00:48]} 36. Re8+ {[%clk 0:00:03]}  Kg7 {[%clk 0:00:46]} 37. Re3 {[%clk 0:00:04]}  Qf6 {[%clk 0:00:43]} 38. Rb3 {[%clk 0:00:02]}  Ra1 {[%clk 0:00:43]} 39. Rb1 {[%clk 0:00:02]}  Rxb1 {[%clk 0:00:43]} 40. Qxb1 {[%clk 0:00:03]}  h5 {[%clk 0:00:43]} 41. Qb5 {[%clk 0:00:03]}  Qd4 {[%clk 0:00:41]} 42. Kg2 {[%clk 0:00:02]}  Qc5 {[%clk 0:00:41]} 43. Qd7 {[%clk 0:00:02]}  b5 {[%clk 0:00:39]} 44. f4 {[%clk 0:00:02]}  b4 {[%clk 0:00:38]} 45. Qb7 {[%clk 0:00:01]}  Qc2+ {[%clk 0:00:31]} 46. Kh3 {[%clk 0:00:00]}  b3 {[%clk 0:00:28]} 0-1


[Site "https://www.chess.com"]

[Event "Titled Tuesday Blitz July 4 Early 2023"]
[White "Mindhunter08"]
[Black "Zavgorodniy, Sergiy"]
[BlackFideId "14110148"]
[WhiteElo "2316"]
[BlackElo "2560"]
[Result "0-1"]
[Round "6"]
[TimeControl "180+2"]
[Date "2023.07.04"]
[WhiteClock "0:00:00"]
[BlackClock "0:00:11"]
[Board "94"]

1. e4 {[%clk 0:03:00]}  e5 {[%clk 0:02:59]} 2. Nf3 {[%clk 0:03:00]}  d6 {[%clk 0:02:59]} 3. d4 {[%clk 0:03:00]}  exd4 {[%clk 0:03:00]} 4. Nxd4 {[%clk 0:03:01]}  Nf6 {[%clk 0:03:00]} 5. Nc3 {[%clk 0:03:00]}  Be7 {[%clk 0:03:00]} 6. Be2 {[%clk 0:02:59]}  O-O {[%clk 0:02:59]} 7. Bf4 {[%clk 0:03:00]}  Nc6 {[%clk 0:02:56]} 8. Qd2 {[%clk 0:02:59]}  Nxd4 {[%clk 0:02:56]} 9. Qxd4 {[%clk 0:03:00]}  Be6 {[%clk 0:02:56]} 10. O-O-O {[%clk 0:02:50]}  Nd7 {[%clk 0:02:55]} 11. Qd2 {[%clk 0:02:48]}  Bf6 {[%clk 0:02:40]} 12. f3 {[%clk 0:02:31]}  a5 {[%clk 0:02:14]} 13. g4 {[%clk 0:02:28]}  a4 {[%clk 0:02:02]} 14. g5 {[%clk 0:02:16]}  Bxc3 {[%clk 0:02:00]} 15. Qxc3 {[%clk 0:02:16]}  Bxa2 {[%clk 0:02:01]} 16. h4 {[%clk 0:02:02]}  Qe7 {[%clk 0:01:26]} 17. h5 {[%clk 0:01:55]}  Ne5 {[%clk 0:01:18]} 18. h6 {[%clk 0:01:41]}  g6 {[%clk 0:01:10]} 19. Be3 {[%clk 0:01:35]}  f6 {[%clk 0:01:00]} 20. f4 {[%clk 0:01:18]}  Nd7 {[%clk 0:00:57]} 21. Bd3 {[%clk 0:00:24]}  Be6 {[%clk 0:00:50]} 22. f5 {[%clk 0:00:21]}  Bxf5 {[%clk 0:00:46]} 23. exf5 {[%clk 0:00:22]}  Qxe3+ {[%clk 0:00:45]} 24. Kb1 {[%clk 0:00:21]}  Qc5 {[%clk 0:00:40]} 25. Bc4+ {[%clk 0:00:18]}  Kh8 {[%clk 0:00:40]} 26. fxg6 {[%clk 0:00:15]}  hxg6 {[%clk 0:00:39]} 27. gxf6 {[%clk 0:00:15]}  Ne5 {[%clk 0:00:39]} 28. Rh4 {[%clk 0:00:10]}  b5 {[%clk 0:00:35]} 29. Bd5 {[%clk 0:00:05]}  Qxc3 {[%clk 0:00:34]} 30. bxc3 {[%clk 0:00:06]}  c6 {[%clk 0:00:30]} 31. Bg2 {[%clk 0:00:06]}  Rxf6 {[%clk 0:00:29]} 32. Rhd4 {[%clk 0:00:06]}  d5 {[%clk 0:00:29]} 33. Re1 {[%clk 0:00:06]}  Nc4 {[%clk 0:00:28]} 34. Re7 {[%clk 0:00:06]}  Raf8 {[%clk 0:00:24]} 35. Ka1 {[%clk 0:00:06]}  Rf2 {[%clk 0:00:23]} 36. Bh3 {[%clk 0:00:06]}  Rxc2 {[%clk 0:00:21]} 37. Rg4 {[%clk 0:00:05]}  Rh2 {[%clk 0:00:15]} 38. Rg3 {[%clk 0:00:03]}  d4 {[%clk 0:00:15]} 39. cxd4 {[%clk 0:00:03]}  b4 {[%clk 0:00:14]} 40. Bg2 {[%clk 0:00:03]}  b3 {[%clk 0:00:13]} 41. Rxg6 {[%clk 0:00:03]}  a3 {[%clk 0:00:11]} 42. Rgg7 {[%clk 0:00:00]}  Rh1+ {[%clk 0:00:11]} 0-1


[Site "https://www.chess.com"]